[Event "FRA-ch Teams Top 16-Haute 2022"]
[Site "Chartres"]
[Date "2022.06.17"]
[Round "9.8"]
[White "Barbot, Pierre"]
[Black "Guichard, Pauline"]
[Result "1-0"]
[ECO "E05"]
[WhiteElo "2450"]
[BlackElo "2377"]
[Annotator "TA"]
[PlyCount "127"]
[EventDate "2022.06.16"]
[EventType "team-tourn"]
[EventCountry "FRA"]
[SourceTitle "playchess.com"]
[Source "ChessBase"]
[SourceQuality "1"]
[TimeControl "40/5400+30:1800+30"]

{[%evp 23,127,12,13,14,16,0,0,0,9,9,10,10,12,9,10,8,15,14,12,9,24,17,23,16,11,9,24,6,10,-10,0,0,0,0,0,0,65,13,8,9,9,23,9,12,21,21,21,6,8,5,5,0,31,34,37,42,39,0,8,8,31,0,8,8,8,8,8,8,21,21,21,0,0,0,0,0,128,121,214,45,240,212,212,213,386,350,406,406,385,368,406,406,634,631,629,619,582,565,629,629,722,635,2377,1958,1844,1579]} 1. d4 {[%emt 0:00:07]} Nf6 {[%emt 0:00:07]} 2. c4 {[%emt 0:00:04]} e6 {[%emt 0:00:07]} 3. Nf3 {[%emt 0:00:04]} d5 {[%emt 0:00:07]} 4. g3 {[%emt 0:00:04]} Be7 {[%emt 0:00:10]} 5. Bg2 {[%emt 0:00:04]} O-O {[%emt 0:00:07]} 6. O-O {[%emt 0:00:04]} dxc4 {[%emt 0:00:10]} 7. Qc2 {[%emt 0:00:11]} a6 {[%emt 0:00:13]} 8. a4 {[%emt 0:00:05]} Bd7 {[%emt 0:00:11][%cal Bc8d7,Bd7c6,Bc6d5][%mdl 32]} 9. Qxc4 {[%emt 0:00:05]} Bc6 {[%emt 0:00:14]} 10. Bg5 {[%emt 0:00:08]} Bd5 {[%emt 0:01:00]} 11. Qc2 {[%emt 0:02:56]} Be4 {[%emt 0:00:47]} 12. Qc1 {[%emt 0:00:41]} h6 {[%emt 0:01:33]} 13. Bxf6 {[%emt 0:06:22] E05: Open Catalan: 5 Nf3 Be7.} Bxf6 {[%emt 0:00:10]} 14. Nc3 {[%emt 0:00:05]} Bxf3 {[%emt 0:05:05]} 15. Bxf3 {[%emt 0:00:57] The position is equal.} c6 {[%emt 0:00:14]} ({Don't do} 15... Nc6 16. e3 $14) 16. Rd1 {[%emt 0:02:05]} a5 {[%emt 0:01:31]} 17. Ne4 {[%emt 0:02:00][%cal Bc3e4,Be4d2,Bd2c4][%mdl 32]} Be7 {[%emt 0:06:50]} 18. h4 {[%emt 0:01:40]} Na6 {[%emt 0:08:09][%cal Bb8a6,Ba6b4,Bb4a2][%mdl 32]} 19. e3 {[%emt 0:02:53] [#]} Qb6 $146 {[%emt 0:11:21]} ({Predecessor:} 19... Qc7 20. Qc4 Rad8 21. Rac1 Nb4 22. Kg2 Rfe8 23. Nc3 g6 24. h5 g5 25. d5 Qe5 26. dxe6 Qxe6 {½-½ (47) Nekhaev,A (2455)-Edwards,J (2525) ICCF email 2020}) 20. Nd2 {[%emt 0:03:44]} Rfd8 {[%emt 0:02:35]} 21. Qc4 {[%emt 0:11:33]} Rac8 {[%emt 0:12:09]} 22. Rac1 {[%emt 0:03:49]} Rd7 {[%emt 0:06:31]} 23. Qc3 {[%emt 0:05:34]} Nb4 {[%emt 0:04:18]} 24. Nc4 {[%emt 0:00:57]} Qc7 {[%emt 0:00:15]} 25. Qb3 {[%emt 0:00:26] Against Na2} Rdd8 {[%emt 0:00:48]} 26. e4 {[%emt 0:04:06]} Bf6 {[%emt 0:09:20]} 27. Qe3 {[%emt 0:02:18]} Na2 {[%emt 0:03:16][%cal Of6d4]} 28. Rc2 {[%emt 0:06:30]} Nb4 {[%emt 0:00:23]} 29. Rcd2 {[%emt 0:02:42]} c5 {[%emt 0:04:06]} ({Black should play} 29... Rd7 $11) 30. dxc5 {[%emt 0:06:24]} ({Better is} 30. d5 $1 $14 exd5 31. exd5) 30... Rxd2 $11 {[%emt 0:01:41]} 31. Rxd2 {[%emt 0:00:05] aiming for e5.} Qxc5 {[%emt 0:00:13]} 32. Qxc5 {[%emt 0:00:17]} Rxc5 {[%emt 0:00:04]} 33. Be2 {[%emt 0:00:07]} b5 {[%emt 0:05:10]} 34. axb5 {[%emt 0:00:08]} Rxb5 {[%emt 0:00:02]} 35. f4 {[%emt 0:02:20]} Nc6 {[%emt 0:06:46]} 36. e5 {[%emt 0:07:52]} Be7 {[%emt 0:00:06]} 37. Kg2 {[%emt 0:00:04]} Bb4 {[%emt 0:07:57]} 38. Rd7 {[%emt 0:01:17]} Rb8 {[%emt 0:00:32]} 39. Bf3 {[%emt 0:04:33]} Ne7 {[%emt 0:00:31]} 40. Nd6 {[%emt 0:05:11]} Kf8 {[%emt 0:01:51]} 41. Kh3 {[%emt 0:33:06]} Bc5 {[%emt 0:21:19]} 42. b3 {[%emt 0:00:00]} g6 {[%emt 0:01:38]} 43. h5 {[%emt 0:00:00]} Rxb3 {[%emt 0:05:57]} 44. Rd8+ {[%emt 0:00:00]} Kg7 {[%emt 0:00:04]} 45. Bd1 {[%emt 0:00:00]} Re3 {[%emt 0:03:16]} 46. Ne8+ {[%emt 0:00:00]} Kh7 {[%emt 0:00:04]} 47. Bg4 {[%emt 0:00:00]} a4 {[%emt 0:03:57]} 48. Nf6+ {[%emt 0:00:00]} Kg7 {[%emt 0:00:02]} 49. hxg6 {[%emt 0:00:00]} Kxg6 {[%emt 0:01:04]} (49... h5 $1 $11 50. Nxh5+ Kxg6) 50. Bd1 $16 {[%emt 0:00:00] White is more active.} Rc3 {[%emt 0:00:37] [#] Prevents Bc2+.} (50... h5 $16 {was necessary.}) 51. Bxa4 $2 {[%emt 0:03:32]} (51. Rh8 $1 $18 {Bh5+ would kill now.} Bf2 52. Ne4) 51... Bf2 $2 {[%emt 0:00:40] This move loses the game for Black.} (51... Be3 $1 $14) 52. Ne4 $18 {[%emt 0:00:24][%csl LRc3,LRf2]} Rc4 {[%emt 0:00:09] [#]} 53. Bb3 $1 {[%emt 0:00:35]} ({Not} 53. Nxf2 Rxa4 54. Re8 Nd5 $11) 53... Rxe4 {[%emt 0:01:01]} (53... Rd4 {was worth a try.}) 54. Bc2 {[%emt 0:00:05]} Kg7 {[%emt 0:00:31] Hoping for ...Re2.} 55. Bxe4 {[%emt 0:00:06][%mdl 4096] Endgame KRB-KBN} Bc5 {[%emt 0:00:25]} 56. Rd7 {[%emt 0:00:50]} Kf8 {[%emt 0:00:34]} 57. Bf3 {[%emt 0:00:24]} Be3 {[%emt 0:00:30]} (57... Kg7 $142 58. Bh5 Kf8) 58. Bh5 {[%emt 0:00:10] White is clearly winning.} Bc1 {[%emt 0:00:12]} 59. Rb7 {[%emt 0:00:05]} Be3 {[%emt 0:00:10]} 60. Kg2 {[%emt 0:00:04]} Bc1 {[%emt 0:00:11]} 61. Kf3 {[%emt 0:00:06] Strongly threatening g4.} Bd2 {[%emt 0:00:15]} 62. Ke4 {[%emt 0:00:12] Threatens to win with g4.} Bc1 {[%emt 0:01:12]} 63. g4 {[%emt 0:00:07] Black must now prevent f5.} Ba3 {[%emt 0:00:27]} 64. f5 {[%emt 0:00:19] Weighted Error Value: White=0.10 (very precise) /Black=0.35} 1-0

[Event "FRA-ch Teams Top 16-Haute 2022"]
[Site "Chartres"]
[Date "2022.06.17"]
[Round "9.9"]
[White "Nihal Sarin"]
[Black "Jones, Gawain C B"]
[Result "1/2-1/2"]
[ECO "C47"]
[WhiteElo "2646"]
[BlackElo "2669"]
[Annotator "TA"]
[PlyCount "35"]
[EventDate "2022.06.16"]
[EventType "team-tourn"]
[EventCountry "FRA"]
[SourceTitle "playchess.com"]
[Source "ChessBase"]
[SourceQuality "1"]
[TimeControl "40/5400+30:1800+30"]

{[%evp 14,35,2,0,6,0,13,8,12,8,8,16,15,10,11,12,6,8,8,7,30,20,33,7]} 1. e4 {[%emt 0:04:28]} e5 {[%emt 0:00:13]} 2. Nf3 {[%emt 0:00:05]} Nc6 {[%emt 0:00:07]} 3. Nc3 {[%emt 0:00:05]} Nf6 {[%emt 0:00:05]} 4. d4 {[%emt 0:00:02]} exd4 {[%emt 0:00:09]} 5. Nxd4 {[%emt 0:00:05]} Bb4 {[%emt 0:00:45]} 6. Nxc6 {[%emt 0:00:06]} bxc6 {[%emt 0:00:07]} 7. Bd3 {[%emt 0:00:03]} d5 {[%emt 0:01:10]} 8. exd5 {[%emt 0:00:11]} O-O {[%emt 0:00:06] now supersedes 8...cxd5. C47: Scotch Four Knights and Four Knights with 4 g3.} ({Don't play} 8... Nxd5 9. O-O $14) 9. O-O {[%emt 0:00:02]} Bg4 {[%emt 0:00:49]} 10. f3 {[%emt 0:00:13]} Bh5 {[%emt 0:00:36] The position is equal.} 11. dxc6 {[%emt 0:01:23]} Qd4+ {[%emt 0:00:16]} 12. Kh1 {[%emt 0:00:05][%cal Od3h7] [#] Black must now prevent Bxh7+!} Bxc3 {[%emt 0:00:06]} 13. bxc3 {[%emt 0:00:02]} Qxc3 {[%emt 0:00:09]} 14. Bf4 {[%emt 0:00:04]} Qxc6 {[%emt 0:04:26]} 15. Qe2 {[%emt 0:00:51]} Nd5 {[%emt 0:09:15]} 16. Bg3 {[%emt 0:01:50]} Bg6 {[%emt 0:04:26]} 17. Bb5 {[%emt 0:10:05] A strong pair of Bishops.} Qb7 {[%emt 0:14:35] [#]} 18. Ba4 $146 {[%emt 0:17:29] An interesting draw.  Weighted Error Value: White=0.02 (flawless) /Black=0.06 (flawless)} ({Predecessor:} 18. Bf2 c6 19. Ba6 Qb2 20. Rfe1 Qxc2 21. Qxc2 Bxc2 22. Rec1 Bf5 23. a3 Bc8 24. Rxc6 {½-½ (42) Paravyan,D (2602)-Sevian,S (2654) Douglas 2019}) 1/2-1/2

[Event "FRA-ch Teams Top 16-Haute 2022"]
[Site "Chartres"]
[Date "2022.06.17"]
[Round "9.11"]
[White "Mendonca, Leon Luke"]
[Black "Grandelius, Nils"]
[Result "0-1"]
[ECO "D12"]
[WhiteElo "2551"]
[BlackElo "2635"]
[Annotator "TA"]
[PlyCount "44"]
[EventDate "2022.06.16"]
[EventType "team-tourn"]
[EventCountry "FRA"]
[SourceTitle "playchess.com"]
[Source "ChessBase"]
[SourceQuality "1"]
[TimeControl "40/5400+30:1800+30"]

{[%evp 12,44,30,19,37,0,0,10,62,53,59,57,61,2,30,23,18,-276,-288,-263,-279,-270,-242,-255,-245,-375,-321,-779,-796,-863,-831,-1638,-1463,-29995,-29996]} 1. d4 {[%emt 0:04:44]} d5 {[%emt 0:00:22]} 2. c4 {[%emt 0:01:13]} c6 {[%emt 0:00:13]} 3. Nf3 {[%emt 0:01:05]} Nf6 {[%emt 0:00:16]} 4. e3 {[%emt 0:00:32]} Bf5 {[%emt 0:00:33]} 5. Nc3 {[%emt 0:00:12]} e6 {[%emt 0:00:25]} 6. Nh4 {[%emt 0:00:33]} Be4 {[%emt 0:00:20]} 7. f3 {[%emt 0:00:43]} Bg6 {[%emt 0:00:10] D12: Slav Defence: 3 Nf3 Nf6 4 e3 Bf5.} 8. Bd2 {[%emt 0:01:40]} dxc4 $5 {[%emt 0:02:08][%mdl 4] An interesting side line.} 9. Bxc4 {[%emt 0:21:05]} b5 {[%emt 0:00:33] [#]} (9... a6 $11) 10. Be2 $146 {[%emt 0:06:44]} ({Predecessor:} 10. Bb3 Bd3 11. Bc1 Bc4 12. Bxc4 bxc4 13. g3 c5 14. Qa4+ Nbd7 15. Qxc4 cxd4 16. Qxd4 {1-0 (50) So,W (2772)-Shirov,A (2704) Berlin 2022}) 10... Nbd7 {[%emt 0:09:42]} 11. Nxg6 {[%emt 0:08:08]} hxg6 {[%emt 0:00:16]} 12. e4 {[%emt 0:00:49]} ({White should play} 12. Ne4 $14) 12... Nh5 {[%emt 0:12:23]} 13. Kf2 {[%emt 0:05:53]} e5 {[%emt 0:01:44]} 14. dxe5 {[%emt 0:13:43][%mdl 8192] This costs White the game.} (14. Be3 $11) 14... Bc5+ $19 {[%emt 0:19:53]} 15. Be3 {[%emt 0:00:21]} Bxe3+ {[%emt 0:04:24]} 16. Kxe3 {[%emt 0:03:30]} Qg5+ {[%emt 0:01:49]} ({Less strong is} 16... Nxe5 17. Qxd8+ Rxd8 18. f4 $16) 17. Kf2 {[%emt 0:00:56]} Nxe5 {[%emt 0:00:14] [#] ...Rd8 is the strong threat.} ({Not} 17... b4 18. Na4 $15) 18. g3 {[%emt 0:20:43]} (18. Qb3 {is a better defense.} Rd8 19. Rad1) 18... Rd8 {[%emt 0:04:03]} 19. Qc1 {[%emt 0:00:32]} (19. Qg1 Rd2 20. Kf1) 19... Rd2 {[%emt 0:04:11] ( -> ...Nd3+)} 20. f4 {[%emt 0:00:35]} Nd3+ {[%emt 0:01:42]} 21. Kf3 {[%emt 0:01:45] [#]} Nhxf4 $1 {[%emt 0:01:45] Pair of Knights!} ({Worse is} 21... Nxc1 22. fxg5 Nxe2 23. Nxe2 $11) 22. Qxd2 {[%emt 0:00:48]} Qh5+ {[%emt 0:00:16] Weighted Error Value: White=1.20/Black=0.08 (flawless)} 0-1

[Event "FRA-ch Teams Top 16-Haute 2022"]
[Site "Chartres"]
[Date "2022.06.17"]
[Round "9.12"]
[White "Fedorchuk, Sergey A."]
[Black "Gatineau, Yovann"]
[Result "1-0"]
[ECO "C54"]
[WhiteElo "2606"]
[BlackElo "2367"]
[Annotator "TA"]
[PlyCount "71"]
[EventDate "2022.06.16"]
[EventType "team-tourn"]
[EventCountry "FRA"]
[SourceTitle "playchess.com"]
[Source "ChessBase"]
[SourceQuality "1"]
[TimeControl "40/5400+30:1800+30"]

{[%evp 20,70,40,43,33,46,31,37,40,31,69,57,51,62,58,24,68,37,75,84,81,80,111,107,102,99,151,154,418,393,417,402,629,472,485,481,466,456,1037,1004,1238,809,1270,1241,1575,1554,1320,1473,29996,29997,29997,29998,29999]} 1. e4 {[%emt 0:00:05]} e5 {[%emt 0:01:50]} 2. Nf3 {[%emt 0:01:35]} Nc6 {[%emt 0:00:20]} 3. Bc4 {[%emt 0:01:15]} Bc5 {[%emt 0:01:07]} 4. d3 {[%emt 0:01:14]} Nf6 {[%emt 0:00:13]} 5. O-O {[%emt 0:01:29]} d6 {[%emt 0:01:18]} 6. c3 {[%emt 0:01:37]} a6 {[%emt 0:01:40]} 7. Bb3 {[%emt 0:01:37]} Ba7 {[%emt 0:00:59]} 8. Re1 {[%emt 0:05:37]} O-O {[%emt 0:01:14]} 9. h3 {[%emt 0:05:13]} Ne7 {[%emt 0:00:57]} 10. Nbd2 {[%emt 0:00:34][%cal Bb1d2,Bd2f1,Bf1g3][%mdl 32]} Ng6 {[%emt 0:00:40]} 11. Nf1 {[%emt 0:00:20]} c6 {[%emt 0:02:31] C54: Giuoco Piano: 4 c3 Nf6, main lines with 5 d4 and 5 d3.} 12. Ng3 {[%emt 0:01:07]} h6 {[%emt 0:03:00]} 13. d4 {[%emt 0:05:48]} Re8 {[%emt 0:02:17] White is slightly better.} 14. Bc2 {[%emt 0:00:41]} Qc7 {[%emt 0:02:30]} 15. Be3 {[%emt 0:02:57]} Be6 {[%emt 0:09:12]} 16. a4 {[%emt 0:13:42]} Rad8 {[%emt 0:12:34] [#]} 17. Qb1 $146 {[%emt 0:03:33]} ({Predecessor:} 17. Qc1 Bb8 18. a5 Qd7 19. dxe5 dxe5 20. Bb6 Bc7 21. Qe3 Nf4 22. Rad1 Qc8 23. Bxc7 Qxc7 {½-½ (29) Esipenko,A (2625)-Yakubboev,N (2574) Abu Dhabi 2019}) 17... Ra8 {[%emt 0:13:39]} 18. a5 {[%emt 0:02:13]} b5 {[%emt 0:04:32]} 19. axb6 {[%emt 0:05:52]} Bxb6 {[%emt 0:00:10]} 20. Qc1 {[%emt 0:00:09]} a5 {[%emt 0:09:44]} 21. Nf5 {[%emt 0:01:43]} Bxf5 {[%emt 0:05:24]} 22. exf5 {[%emt 0:00:29]} Nf8 {[%emt 0:06:05] [#]} ({Better is} 22... e4) 23. Bxh6 $1 $16 {[%emt 0:05:59]} (23. dxe5 $6 Bxe3 24. Qxe3 dxe5 $14) 23... gxh6 {[%emt 0:08:46] Loses the game.} (23... N8h7 $16) 24. Qxh6 $18 {[%emt 0:00:17]} N8h7 {[%emt 0:00:12] Prevents Qg5+.} 25. Ng5 {[%emt 0:02:26]} e4 {[%emt 0:05:09]} (25... d5 $142 26. Nxh7 Nxh7) 26. Nxh7 {[%emt 0:01:31][%mdl 64] Remove Defender} Nxh7 {[%emt 0:00:06]} 27. f6 {[%emt 0:01:00]} Nxf6 {[%emt 0:00:15]} 28. Re3 {[%emt 0:00:28][%cal Be1e3,Be3g3,Bg3h3,Bh3h7][%mdl 32] Threatening mate with Rg3+.} ({Less strong is} 28. Qxf6 Re6 29. Qh4 d5 $18) ({Weaker is} 28. Qg5+ Kf8 $18) 28... Ng4 {[%emt 0:02:50]} (28... d5 $142 29. Rg3+ (29. Qxf6 Re6 $16) 29... Qxg3 30. fxg3 Re6) 29. Rg3 {[%emt 0:00:23][%cal Rg3g4][%mdl 64] [#] Pin} f5 {[%emt 0:00:59]} 30. Qg6+ {[%emt 0:00:37]} Kf8 {[%emt 0:00:51]} 31. hxg4 {[%emt 0:00:59]} Ke7 {[%emt 0:03:53]} 32. Rh3 {[%emt 0:01:01]} Kd8 {[%emt 0:00:58]} 33. Rh7 {[%emt 0:00:09]} Qb8 {[%emt 0:00:05]} 34. Qf6+ {[%emt 0:00:10] White mates.} Kc8 {[%emt 0:00:08]} 35. Qxf5+ {[%emt 0:00:06]} Kd8 {[%emt 0:00:01]} 36. Qd7# {[%emt 0:00:11] Weighted Error Value: White=0.13 (very precise) /Black=0.79} 1-0

[Event "FRA-ch Teams Top 16-Haute 2022"]
[Site "Chartres"]
[Date "2022.06.17"]
[Round "9.13"]
[White "Papadiamandis, Elliot"]
[Black "David, Alberto"]
[Result "1/2-1/2"]
[ECO "B84"]
[WhiteElo "2373"]
[BlackElo "2520"]
[Annotator "TA"]
[PlyCount "32"]
[EventDate "2022.06.16"]
[EventType "team-tourn"]
[EventCountry "FRA"]
[SourceTitle "playchess.com"]
[Source "ChessBase"]
[SourceQuality "1"]
[TimeControl "40/5400+30:1800+30"]

{[%evp 20,32,0,0,42,45,44,47,63,42,70,81,107,84,119]} 1. e4 {[%emt 0:04:02]} c5 {[%emt 0:00:07]} 2. Nf3 {[%emt 0:01:11]} e6 {[%emt 0:00:06]} 3. d4 {[%emt 0:00:12]} cxd4 {[%emt 0:00:06]} 4. Nxd4 {[%emt 0:00:08]} a6 {[%emt 0:00:05]} 5. Be2 {[%emt 0:00:53]} Nf6 {[%emt 0:00:19]} 6. Nc3 {[%emt 0:00:19]} d6 {[%emt 0:00:47]} 7. a4 {[%emt 0:03:17]} Nc6 {[%emt 0:08:06]} 8. O-O {[%emt 0:06:29]} Be7 {[%emt 0:01:22]} 9. Be3 {[%emt 0:01:35]} O-O {[%emt 0:03:48]} 10. Nxc6 {[%emt 0:18:17]} bxc6 {[%emt 0:01:27]} 11. a5 {[%emt 0:00:20]} Nd7 {[%emt 0:06:31] B84: Sicilian Scheveningen: 6 Be2 a6, lines without early Be3.} 12. Qd2 {[%emt 0:05:07]} Rb8 {[%emt 0:05:27]} 13. Na4 $1 {[%emt 0:01:25]} c5 {[%emt 0:02:26] [#]} 14. Bf4 $146 {[%emt 0:05:03] White is more active.} ({Predecessor:} 14. Rfd1 Bb7 15. f3 Qc7 16. c3 Rfd8 17. b4 d5 18. exd5 Bxd5 19. c4 Bc6 20. Qe1 cxb4 {1-0 (36) Yilmaz,E (1866)-Uyanik,M (1582) Antalya 2017}) 14... Qc7 {[%emt 0:07:54]} 15. Rfd1 {[%emt 0:13:37][%cal Rf4d6]} e5 {[%emt 0:02:31]} 16. Be3 {[%emt 0:00:30]} Rb4 {[%emt 0:11:43] White took control after the opening.  Weighted Error Value: White=0.02 (flawless) /Black=0.22 (precise)} 1/2-1/2

[Event "FRA-ch Teams Top 16-Haute 2022"]
[Site "Chartres"]
[Date "2022.06.17"]
[Round "9.14"]
[White "Velten, Paul"]
[Black "Terrieux, Kevin"]
[Result "1/2-1/2"]
[ECO "B30"]
[WhiteElo "2492"]
[BlackElo "2448"]
[Annotator "TA"]
[PlyCount "114"]
[EventDate "2022.06.16"]
[EventType "team-tourn"]
[EventCountry "FRA"]
[SourceTitle "playchess.com"]
[Source "ChessBase"]
[SourceQuality "1"]
[TimeControl "40/5400+30:1800+30"]

{[%evp 13,114,7,0,-45,-43,-31,-33,-40,-39,-64,-22,-42,-19,-52,-12,-43,-41,-115,-87,-113,-109,-133,-120,-167,-164,-194,-193,-274,-278,-274,-242,-275,-139,-239,-173,-185,-163,-190,-173,-167,-134,-128,-125,-127,-142,-175,-170,-161,-148,-214,-120,-221,-231,-238,-233,-227,-231,-215,-218,-248,-214,-216,-201,-199,-200,-198,-195,-239,-207,-297,-291,-274,-267,-295,-301,-301,-229,-210,-189,-212,-186,-186,-190,-207,-201,-191,-133,-127,-112,-125,-131,-136,-138,-204,0,-12,0,0,0,-12,0,0,0]} 1. e4 {[%emt 0:01:38]} c5 {[%emt 0:01:22]} 2. Nf3 {[%emt 0:02:35]} Nc6 {[%emt 0:05:46]} 3. Bb5 {[%emt 0:03:43]} e6 {[%emt 0:00:16]} 4. Bxc6 {[%emt 0:02:18]} bxc6 {[%emt 0:00:07]} 5. O-O {[%emt 0:02:48]} Ne7 {[%emt 0:04:41]} 6. b3 {[%emt 0:03:11]} Ng6 {[%emt 0:02:13]} 7. Bb2 {[%emt 0:01:27]} f6 {[%emt 0:00:35]} 8. c3 {[%emt 0:04:05] B30: Sicilian: 2...Nc6 3 Bb5, lines without ...g6.} d5 {[%emt 0:14:18]} 9. Re1 {[%emt 0:03:12] [#]} Bd6 $146 {[%emt 0:06:28]} ({Predecessor:} 9... Be7 10. d4 O-O 11. dxc5 Bxc5 12. Ba3 Bxa3 13. Nxa3 e5 14. exd5 cxd5 15. c4 d4 {0-1 (27) Samhouri,A (2355)-Moiseenko,A (2667) Riadh 2017}) 10. d4 {[%emt 0:03:38] Black is slightly better.} O-O {[%emt 0:00:37]} 11. Nbd2 {[%emt 0:02:22]} cxd4 {[%emt 0:07:50]} 12. cxd4 {[%emt 0:00:14]} a5 {[%emt 0:04:03]} 13. Qc2 {[%emt 0:01:04]} Qd7 {[%emt 0:01:57]} 14. Rac1 {[%emt 0:01:10]} Bb7 {[%emt 0:00:27]} 15. Nb1 {[%emt 0:00:55]} ({Better is} 15. g3 $15) 15... Bb4 {[%emt 0:12:41]} 16. Red1 {[%emt 0:04:10]} Rfc8 {[%emt 0:04:53]} 17. a3 {[%emt 0:08:39] [#]} Bd6 {[%emt 0:04:00]} 18. e5 {[%emt 0:00:45]} (18. g3 $17 {keeps fighting.}) 18... fxe5 $19 {[%emt 0:02:27]} 19. dxe5 {[%emt 0:00:25]} Be7 {[%emt 0:00:16]} 20. Rd4 {[%emt 0:02:47]} (20. a4 $142) 20... c5 {[%emt 0:01:12]} 21. Rg4 {[%emt 0:00:13]} Rf8 {[%emt 0:00:09]} 22. Nbd2 {[%emt 0:00:52]} Rf5 {[%emt 0:00:10] Against Ng5} ({Black should play} 22... Nf4 $19 {Hoping for ...Ne2+.} 23. Re1 Ba6) 23. Re1 {[%emt 0:02:35]} (23. b4 $17 {is a better defense.}) 23... Bc6 {[%emt 0:04:52]} 24. b4 {[%emt 0:04:28]} Ba4 {[%emt 0:00:34]} 25. Qb1 {[%emt 0:02:09]} axb4 {[%emt 0:00:53]} 26. axb4 {[%emt 0:00:09]} c4 {[%emt 0:00:50]} 27. Bc3 {[%emt 0:03:58]} Raf8 {[%emt 0:02:06]} 28. Qa1 {[%emt 0:02:23]} Rf4 $36 {[%emt 0:01:59][%mdl 2048] Black has strong initiative.} 29. Rxf4 {[%emt 0:01:33]} Nxf4 {[%emt 0:00:02]} ({Weaker is} 29... Rxf4 30. Nd4 $11) 30. Nd4 {[%emt 0:02:02]} Nd3 {[%emt 0:01:56]} 31. Rf1 {[%emt 0:00:04]} (31. Re2 $17) 31... Nxb4 {[%emt 0:02:10]} (31... Bxb4 32. Bxb4 Nxb4 33. N2f3) (31... Ra8 $19 32. N2f3 Qc8) 32. Nxe6 {[%emt 0:00:49]} Qxe6 {[%emt 0:02:31]} 33. Qxa4 {[%emt 0:00:06]} Nd3 {[%emt 0:03:17][%cal Bb4d3,Bd3e5,Be5c6][%mdl 32]} 34. Bd4 {[%emt 0:02:30]} Qg4 {[%emt 0:05:12]} (34... Nxe5 35. Re1 Bf6 36. Bxe5 Bxe5 37. Nf3 Rxf3 38. gxf3 $11) 35. Be3 {[%emt 0:00:05]} Nxe5 {[%emt 0:00:37]} 36. Qa5 {[%emt 0:01:10]} Qd7 {[%emt 0:00:36]} 37. Rd1 {[%emt 0:00:06]} Nc6 {[%emt 0:01:59]} 38. Qa4 {[%emt 0:00:31][%cal Od2c4]} Qe6 {[%emt 0:00:28]} 39. Nf3 {[%emt 0:00:41]} Bf6 {[%emt 0:00:42][%cal Od5d4]} 40. Bc5 {[%emt 0:00:03]} Rd8 {[%emt 0:00:55]} 41. Re1 {[%emt 0:30:35]} (41. Bb6 $142 Rb8 42. Bc5) 41... Qd7 {[%emt 0:30:25][%cal Oc6e5] Strongly threatening ...Ne5!} 42. Qc2 {[%emt 0:01:22]} Ra8 {[%emt 0:00:00][%cal Bd8a8,Ba8a5,Ba5b5,Bb5b8][%mdl 32]} 43. h4 {[%emt 0:00:00]} Ra5 {[%emt 0:00:00]} 44. Bb6 {[%emt 0:00:00][%cal Bc5b6,Bb6e3,Be3g5][%mdl 32]} Rb5 {[%emt 0:00:00]} 45. Be3 {[%emt 0:00:00]} Rb8 {[%emt 0:00:00]} 46. Bg5 {[%emt 0:00:00]} Nd4 {[%emt 0:00:00]} 47. Nxd4 {[%emt 0:00:00]} Bxd4 {[%emt 0:00:00]} 48. Qd1 {[%emt 0:00:00]} Bc5 {[%emt 0:00:00] Threatens to win with ...Rf8.} 49. Re5 {[%emt 0:00:00]} Qf7 {[%emt 0:00:20]} (49... Rb5 $19 {...Qf7 is the strong threat.} 50. Bf4 h6) 50. Be3 $17 {[%emt 0:00:00]} Bxe3 {[%emt 0:01:21]} 51. fxe3 {[%emt 0:00:00][%mdl 4096] Endgame KQR-KQR} c3 {[%emt 0:03:59]} 52. Rxd5 {[%emt 0:00:00]} Qe7 {[%emt 0:00:54] Against Rd8+} ({But not} 52... c2 53. Rd8+ Rxd8 54. Qxd8+ Qf8 55. Qd5+ (55. Qc7 Qf5 $11) 55... Kh8 56. Qc6 $16) 53. Qd3 {[%emt 0:00:00] [#]} (53. Rd3 $17 {was necessary.}) 53... Qxh4 $2 {[%emt 0:00:33]} (53... Rc8 $1 $19 {( -> ...c2)} 54. Rd7 Qc5) 54. Rc5 {[%emt 0:00:00] The position is equal.} Qe1+ {[%emt 0:00:11]} 55. Kh2 {[%emt 0:00:00] Qc4+ would kill now.} Qh4+ {[%emt 0:00:38]} 56. Kg1 {[%emt 0:00:00]} Qe1+ {[%emt 0:00:21]} 57. Kh2 {[%emt 0:00:00] White threatens Qc4+ and mate.} Qh4+ {[%emt 0:00:11] Weighted Error Value: White=0.24 (precise) /Black=0.22 (precise)} 1/2-1/2